[Event "13th Poti Nana Aleksandria Cup"]
[Site "Poti"]
[Date "2018.07.18"]
[Round "7"]
[White "Matevosyan, Sedrak"]
[Black "Matsenko, Andrei"]
[Result "1-0"]
[ECO "A55"]
[WhiteElo "2161"]
[BlackElo "2299"]
[Annotator "NA"]
[PlyCount "131"]
[EventDate "2018.07.13"]
[EventType "swiss"]
[EventCountry "GEO"]
[SourceTitle "playchess.com"]
[Source "ChessBase"]
[SourceQuality "1"]
[TimeControl "40/5400+30:1800+30"]

1. Nf3 {[%emt 0:00:00]} Nf6 {[%emt 0:00:00]} 2. c4 {[%emt 0:00:00]} d6 {[%emt 0:00:00]} 3. d4 {[%emt 0:00:10]} Nbd7 {[%emt 0:00:00]} 4. Nc3 {[%emt 0:00:26]} e5 {[%emt 0:00:00]} 5. e4 {[%emt 0:00:09]} c6 {[%emt 0:00:00]} 6. g3 {[%emt 0:00:19] LiveBook: 162 Partien} g6 {[%emt 0:00:27]} 7. Bg2 {[%emt 0:01:00]} Bg7 {[%emt 0:00:06]} 8. O-O {[%emt 0:01:05]} O-O {[%emt 0:00:05]} 9. Re1 {[%emt 0:00:11]} Re8 {[%emt 0:04:41]} 10. h3 {[%emt 0:00:14]} exd4 {[%emt 0:01:43]} 11. Nxd4 {[%emt 0:00:15]} Nc5 {[%emt 0:00:25]} 12. Bf4 {[%emt 0:04:23]} Nh5 {[%emt 0:04:32]} 13. Be3 {[%emt 0:01:16] E69: King's Indian: Fianchetto: 6...Nbd7 7 0-0 e5 8 e4 c6 9 h3} a5 {[%emt 0:01:29]} 14. Nf5 {[%emt 0:11:41]} ({Better is} 14. b3 $14) (14. Qc2 a4 15. Rad1 Qa5 16. g4 Nf6 17. f4 Bxg4 18. hxg4 Nxg4 19. Bh3 Nxe3 20. Rxe3 Qb6 {1-0 (39) Van Wely,L (2667)-Todorov,T (2477) Brest 2018}) 14... gxf5 $146 {[%emt 0:02:37]} ({Predecessor:} 14... Bxf5 15. exf5 a4 16. fxg6 hxg6 17. Qc2 a3 18. b3 Qa5 19. Rac1 Ne6 20. Qd2 Be5 {½-½ (59) Baumgartner,H (2352)-Littlewood,J (2301) Rowy 2000}) 15. Qxh5 {[%emt 0:02:54]} Nd3 {[%emt 0:04:57]} (15... Nxe4 $11 {keeps the balance.} 16. Nxe4 fxe4) 16. exf5 {[%emt 0:13:00]} Nxe1 {[%emt 0:01:27]} 17. Rxe1 {[%emt 0:00:14]} Re5 {[%emt 0:12:45]} 18. g4 {[%emt 0:01:35]} Qe7 {[%emt 0:02:08] [#]} (18... Be6 $14) 19. Rf1 $2 {[%emt 0:09:28] [#]} (19. Be4 $1 $16) 19... f6 $2 {[%emt 0:05:46]} (19... Be6 $1 $17 {[%cal Re6c4][%mdl 512] keeps the pressure on.} 20. c5 (20. fxe6 Rxh5) 20... Bc4 21. cxd6 Qxd6) 20. Bd4 {[%emt 0:04:33]} Re1 {[%emt 0:00:28] [#]} (20... Be6 $16 {was called for.}) 21. Rxe1 $1 {[%emt 0:23:37]} Qxe1+ {[%emt 0:00:14]} 22. Kh2 {[%emt 0:00:03]} Qe7 {[%emt 0:04:05]} 23. Ne4 {[%emt 0:02:57]} d5 {[%emt 0:05:17]} 24. cxd5 {[%emt 0:02:49]} cxd5 {[%emt 0:00:10]} 25. Nxf6+ {[%emt 0:01:57]} Bxf6 {[%emt 0:00:06]} 26. Bxd5+ {[%emt 0:00:06]} Be6 {[%emt 0:00:56]} 27. Bxe6+ {[%emt 0:01:50]} Kh8 {[%emt 0:00:12]} 28. Be3 {[%emt 0:08:05]} Qd6+ {[%emt 0:15:48]} 29. Kg2 {[%emt 0:00:09]} Qc6+ {[%emt 0:01:48]} 30. Kg1 {[%emt 0:01:27]} Qe4 $2 {[%emt 0:02:51]} (30... Qf3 {might work better.} 31. Qh6 Bg7) 31. g5 {[%emt 0:02:41]} Qb1+ {[%emt 0:01:09]} 32. Kg2 {[%emt 0:00:25]} Qe4+ {[%emt 0:00:04]} 33. Kg1 {[%emt 0:00:04]} Qb1+ {[%emt 0:00:02]} 34. Kg2 {[%emt 0:00:33]} Qe4+ {[%emt 0:00:04]} 35. Qf3 {[%emt 0:00:55]} Qxf3+ {[%emt 0:00:04]} 36. Kxf3 {[%emt 0:00:03]} Bxb2 {[%emt 0:00:04]} 37. a4 {[%emt 0:02:05]} Kg7 {[%emt 0:10:59]} 38. Kg4 {[%emt 0:01:19]} b5 {[%emt 0:00:59]} 39. axb5 {[%emt 0:01:19]} a4 {[%emt 0:00:12]} 40. b6 {[%emt 0:00:00]} a3 {[%emt 0:00:00]} 41. f4 {[%emt 0:15:11]} Ra4 {[%emt 0:03:49]} 42. Kh5 {[%emt 0:02:49]} Ra5 {[%emt 0:01:39]} 43. Kg4 {[%emt 0:02:38]} Ra4 {[%emt 0:00:41]} 44. Kf3 {[%emt 0:06:49]} Rb4 {[%emt 0:01:03]} 45. f6+ {[%emt 0:00:38]} Bxf6 {[%emt 0:00:04]} 46. gxf6+ {[%emt 0:00:05]} Kxf6 {[%emt 0:00:02]} 47. Bd5 {[%emt 0:01:09]} Kf5 {[%emt 0:00:51]} 48. b7 {[%emt 0:01:36]} a2 {[%emt 0:00:05]} 49. Bxa2 {[%emt 0:00:18]} Rxb7 {[%emt 0:00:04]} 50. Bc4 {[%emt 0:00:51]} Rd7 {[%emt 0:00:15]} 51. h4 {[%emt 0:01:15]} Rd1 {[%emt 0:00:17]} 52. Be2 {[%emt 0:00:30]} Rd7 {[%emt 0:00:52]} 53. Bf1 {[%emt 0:00:13]} Rd1 {[%emt 0:00:09]} 54. Bh3+ {[%emt 0:00:09]} Kf6 {[%emt 0:00:11]} 55. Bg4 {[%emt 0:00:34]} Rf1+ {[%emt 0:00:47]} 56. Ke4 {[%emt 0:00:13]} Re1 {[%emt 0:00:25]} 57. h5 {[%emt 0:00:55]} h6 {[%emt 0:00:31]} 58. Kd3 {[%emt 0:01:14]} Rb1 {[%emt 0:00:43]} 59. Bd4+ {[%emt 0:00:07]} Kf7 {[%emt 0:00:13]} 60. Bf5 {[%emt 0:00:29]} Rf1 $18 {[%emt 0:00:25]} 61. Bg6+ {[%emt 0:00:36]} Ke6 {[%emt 0:00:04]} 62. Ke4 {[%emt 0:00:10]} Re1+ {[%emt 0:00:06]} 63. Kf3 {[%emt 0:00:17]} Rf1+ {[%emt 0:00:14]} 64. Kg4 {[%emt 0:00:33]} Rd1 {[%emt 0:00:52]} 65. f5+ {[%emt 0:00:16]} Kd5 {[%emt 0:00:09]} 66. Bg7 {[%emt 0:00:56]} 1-0

[Event "13th Poti Nana Aleksandria Cup"]
[Site "Poti"]
[Date "2018.07.18"]
[Round "7"]
[White "Kokaia, Guram"]
[Black "Mnatsakanian, Arsen"]
[Result "0-1"]
[ECO "B07"]
[WhiteElo "2159"]
[BlackElo "2047"]
[Annotator "NA"]
[PlyCount "54"]
[EventDate "2018.07.13"]
[EventType "swiss"]
[EventCountry "GEO"]
[SourceTitle "playchess.com"]
[Source "ChessBase"]
[SourceQuality "1"]
[TimeControl "40/5400+30:1800+30"]

1. e4 {[%emt 0:08:26]} d6 {[%emt 0:00:00]} 2. d4 {[%emt 0:00:16]} Nf6 {[%emt 0:00:00]} 3. Nc3 {[%emt 0:00:04]} g6 {[%emt 0:00:00]} 4. Be3 {[%emt 0:00:08]} Bg7 {[%emt 0:00:00]} 5. Qd2 {[%emt 0:00:33]} c6 {[%emt 0:00:00]} 6. O-O-O {[%emt 0:01:06]} Qa5 {[%emt 0:00:32]} 7. Kb1 {[%emt 0:00:18]} Nbd7 {[%emt 0:01:08]} 8. Bh6 {[%emt 0:16:30]} Bxh6 {[%emt 0:00:30]} 9. Qxh6 {[%emt 0:00:03]} b5 {[%emt 0:00:37]} 10. f3 {[%emt 0:06:35]} b4 {[%emt 0:01:03]} 11. Nce2 {[%emt 0:00:06]} Ba6 {[%emt 0:00:09]} 12. Nh3 {[%emt 0:05:07]} c5 {[%emt 0:03:51]} 13. dxc5 {[%emt 0:03:08]} Qxc5 {[%emt 0:02:29]} 14. Nd4 {[%emt 0:05:00]} Bxf1 {[%emt 0:00:05]} 15. Rhxf1 {[%emt 0:00:03]} Rc8 {[%emt 0:02:13]} 16. Ka1 {[%emt 0:04:31]} a5 {[%emt 0:11:01]} 17. Ng5 {[%emt 0:32:43] [#]} (17. Rf2 $17) 17... a4 $16 {[%emt 0:06:16]} (17... e6 $2) 18. f4 {[%emt 0:10:45]} (18. Rd2 a3) (18. Qg7 Rf8 $19) 18... a3 {[%emt 0:01:59]} 19. Rf3 {[%emt 0:02:12]} axb2+ {[%emt 0:07:45]} 20. Kxb2 {[%emt 0:00:50]} e5 {[%emt 0:00:49]} 21. fxe5 {[%emt 0:00:26]} dxe5 {[%emt 0:00:34]} 22. Qg7 {[%emt 0:00:11]} Rf8 {[%emt 0:00:09]} 23. Rxf6 {[%emt 0:00:54]} exd4 {[%emt 0:13:48]} 24. Rdf1 {[%emt 0:00:40]} Qxc2+ {[%emt 0:01:01]} 25. Ka1 {[%emt 0:00:05]} Ra8 {[%emt 0:02:53]} 26. Re6+ {[%emt 0:00:16]} Kd8 {[%emt 0:00:03]} 27. Nxf7+ {[%emt 0:00:57]} Kc7 {[%emt 0:00:23]} 0-1

[Event "13th Poti Nana Aleksandria Cup"]
[Site "Poti"]
[Date "2018.07.18"]
[Round "7"]
[White "Mesropian, Khachatur"]
[Black "Mammadov, Sadig"]
[Result "1-0"]
[ECO "E73"]
[WhiteElo "2128"]
[BlackElo "2312"]
[Annotator "NA"]
[PlyCount "157"]
[EventDate "2018.07.13"]
[EventType "swiss"]
[EventCountry "GEO"]
[SourceTitle "playchess.com"]
[Source "ChessBase"]
[SourceQuality "1"]
[TimeControl "40/5400+30:1800+30"]

1. d4 {[%emt 0:00:00]} Nf6 {[%emt 0:00:00]} 2. c4 {[%emt 0:00:00]} g6 {[%emt 0:00:25]} 3. Nc3 {[%emt 0:00:00]} Bg7 {[%emt 0:00:00]} 4. e4 {[%emt 0:00:00]} d6 {[%emt 0:00:01]} 5. Be2 {[%emt 0:00:00]} O-O {[%emt 0:00:30]} 6. Bg5 {[%emt 0:00:00]} c5 {[%emt 0:00:07]} 7. d5 {[%emt 0:00:00]} b5 {[%emt 0:00:39]} 8. cxb5 {[%emt 0:00:00]} a6 {[%emt 0:00:03]} 9. a4 {[%emt 0:01:01]} axb5 {[%emt 0:01:38]} 10. Bxb5 {[%emt 0:01:33]} Qa5 {[%emt 0:01:10]} 11. Bd2 {[%emt 0:01:39]} Ba6 {[%emt 0:02:55]} 12. Nge2 {[%emt 0:01:43]} Bxb5 {[%emt 0:07:41] E74: King's Indian: Averbakh Variation: 6...c5} (12... Nbd7 13. O-O Ne5 14. Qc2 Qb4 15. Bxa6 Rxa6 16. b3 c4 17. Rab1 h5 18. h3 Raa8 19. Be3 Rfc8 20. Rfd1 {1-0 (65) Lalith,B (2587)-Fressinet,L (2672) Doha 2016}) 13. Nxb5 {[%emt 0:00:12]} Qb6 {[%emt 0:00:01]} 14. Qc2 $146 {[%emt 0:01:38]} ({Predecessor:} 14. Nec3 Na6 15. O-O Nd7 16. Qe2 Nb4 17. Bg5 Rfe8 18. Rad1 Ne5 19. b3 Rac8 20. Be3 {1-0 (37) Tratar,M (2494)-Stajner,S (2330) Slovenia 2013}) 14... Nfd7 {[%emt 0:01:11]} 15. Bc3 {[%emt 0:00:51]} Nf6 {[%emt 0:03:49]} 16. O-O {[%emt 0:00:15]} Na6 {[%emt 0:00:11]} 17. Ng3 {[%emt 0:03:11]} Rfc8 {[%emt 0:07:00]} 18. b3 {[%emt 0:01:49]} Rab8 {[%emt 0:08:22]} 19. Qd2 {[%emt 0:02:58]} h5 {[%emt 0:08:54]} 20. Rfe1 {[%emt 0:01:37]} Qb7 {[%emt 0:03:18]} 21. Rab1 {[%emt 0:01:26]} Nc7 {[%emt 0:02:46]} 22. Na3 {[%emt 0:03:06]} h4 {[%emt 0:02:06]} 23. Nf1 {[%emt 0:00:11]} h3 {[%emt 0:00:32]} 24. gxh3 {[%emt 0:01:11]} Kh7 {[%emt 0:01:06]} 25. Nc4 {[%emt 0:01:28]} Rh8 {[%emt 0:05:08]} 26. Na5 {[%emt 0:13:37]} Qa8 {[%emt 0:00:32]} 27. Nc6 {[%emt 0:00:27]} Rbe8 {[%emt 0:00:08]} 28. Na5 $2 {[%emt 0:05:02]} ({Günstiger ist} 28. Qg5 $18) 28... Kg8 {[%emt 0:01:12]} 29. Qd3 {[%emt 0:01:39]} Qc8 {[%emt 0:02:13]} (29... e6 $1 $11 {keeps the balance.}) 30. Re3 {[%emt 0:01:12]} Rh4 {[%emt 0:02:28]} 31. Bxf6 {[%emt 0:01:19]} Bxf6 {[%emt 0:00:25]} 32. Nc4 {[%emt 0:00:08]} Kg7 {[%emt 0:05:56]} (32... Bg5 $16 {was worth a try.}) 33. Rg3 {[%emt 0:03:21]} Reh8 {[%emt 0:04:04]} 34. Kg2 {[%emt 0:00:25]} Bd4 {[%emt 0:04:26]} 35. b4 {[%emt 0:03:44]} Qa6 {[%emt 0:03:35]} 36. a5 {[%emt 0:01:45]} Rb8 {[%emt 0:00:49]} 37. Rg4 {[%emt 0:01:51]} Rhh8 {[%emt 0:01:24]} 38. Ng3 {[%emt 0:08:32]} Bf6 {[%emt 0:02:18]} 39. f4 {[%emt 0:01:58]} cxb4 {[%emt 0:05:52]} 40. e5 {[%emt 0:00:00]} dxe5 {[%emt 0:00:00]} 41. fxe5 {[%emt 0:01:19]} Bxe5 {[%emt 0:00:59]} 42. Nxe5 {[%emt 0:01:05]} Qxd3 {[%emt 0:00:41]} 43. Nxd3 {[%emt 0:00:02]} Rb5 $2 {[%emt 0:01:31]} (43... Nxd5 $16 44. Rd4 Rb5) 44. Nxb4 {[%emt 0:12:18]} Nxd5 {[%emt 0:01:59]} 45. Nf5+ {[%emt 0:07:31]} Kf8 $2 {[%emt 0:02:03]} (45... Kf6 {is a better chance.}) 46. Rd4 {[%emt 0:00:53]} e6 {[%emt 0:00:54]} 47. Nd6 {[%emt 0:04:45]} Ne3+ {[%emt 0:00:51]} 48. Kf2 {[%emt 0:00:17]} Rxa5 {[%emt 0:00:01]} 49. Kxe3 {[%emt 0:08:25]} Rxh3+ {[%emt 0:00:01]} 50. Kf2 {[%emt 0:01:34]} Rxh2+ {[%emt 0:00:11]} 51. Kg3 {[%emt 0:00:10]} Rah5 {[%emt 0:00:48]} 52. Ne4 {[%emt 0:07:37]} e5 {[%emt 0:08:31]} 53. Rd8+ {[%emt 0:10:40]} Kg7 {[%emt 0:00:01]} 54. Nf2 {[%emt 0:00:23]} R2h4 {[%emt 0:05:17]} 55. Nbd3 {[%emt 0:02:22]} Ra4 {[%emt 0:03:29]} 56. Rb4 {[%emt 0:03:08]} Rxb4 {[%emt 0:03:06]} 57. Nxb4 {[%emt 0:00:02]} Rh8 {[%emt 0:00:05]} 58. Rd5 {[%emt 0:00:19]} Re8 {[%emt 0:00:15]} 59. Ng4 {[%emt 0:01:27]} e4 {[%emt 0:00:25]} 60. Kf4 {[%emt 0:00:55]} Re6 {[%emt 0:01:39]} 61. Nc2 {[%emt 0:00:55]} Re7 {[%emt 0:02:03]} 62. Nce3 {[%emt 0:00:45]} Ra7 {[%emt 0:01:36]} 63. Rd6 {[%emt 0:01:36]} Ra3 {[%emt 0:01:52]} 64. Nf6 {[%emt 0:00:37]} Ra4 {[%emt 0:00:30]} 65. Neg4 {[%emt 0:00:47]} e3+ {[%emt 0:02:36]} 66. Kxe3 Ra3+ 67. Kf4 {[%emt 0:00:44]} Ra4+ {[%emt 0:00:05]} 68. Kg5 {[%emt 0:00:32]} Ra5+ {[%emt 0:00:07]} 69. Kh4 {[%emt 0:00:11]} Ra8 {[%emt 0:00:01]} 70. Rd3 {[%emt 0:01:28]} Rb8 {[%emt 0:00:18]} 71. Rd7 {[%emt 0:01:08]} Ra8 {[%emt 0:00:50]} 72. Ne4 {[%emt 0:01:05]} Ra1 {[%emt 0:01:48]} 73. Nd6 {[%emt 0:00:43]} Rh1+ {[%emt 0:00:10]} 74. Kg3 {[%emt 0:00:05]} Rg1+ {[%emt 0:00:09]} 75. Kh3 {[%emt 0:00:08]} Rf1 {[%emt 0:00:11]} 76. Ne5 $18 {[%emt 0:01:38]} (76. Kg2 Rf4 77. Nf2 g5 78. Nd3 Rg4+ 79. Kf3) 76... Rf2 {[%emt 0:00:36]} 77. Ndxf7 {[%emt 0:00:31]} Kf6 {[%emt 0:00:20]} 78. Ng4+ {[%emt 0:00:23]} Ke6 {[%emt 0:00:05]} 79. Rd6+ {[%emt 0:00:08]} 1-0

[Event "13th Poti Nana Aleksandria Cup"]
[Site "Poti"]
[Date "2018.07.18"]
[Round "7"]
[White "Matsenko, Vadim"]
[Black "Bibilashvili, Lali"]
[Result "1-0"]
[ECO "B10"]
[WhiteElo "2106"]
[BlackElo "1816"]
[Annotator "NA"]
[PlyCount "97"]
[EventDate "2018.07.13"]
[EventType "swiss"]
[EventCountry "GEO"]
[SourceTitle "playchess.com"]
[Source "ChessBase"]
[SourceQuality "1"]
[TimeControl "40/5400+30:1800+30"]

1. e4 {[%emt 0:00:00]} c6 {[%emt 0:02:18]} 2. Nc3 {[%emt 0:00:06]} d5 {[%emt 0:00:05]} 3. Qe2 {[%emt 0:00:14] B11: Caro-Kann (Zweispringer-Variante)} (3. Nf3 g6 4. h3 Bg7 5. d4 dxe4 6. Nxe4 Nf6 7. Nxf6+ exf6 8. Bc4 O-O 9. O-O a5 10. a4 Nd7 11. Bf4 Nb6 12. Bb3 Nd5 13. Bh2 Be6 14. Re1 Re8 15. Nd2 f5 16. Nc4 f4 17. c3 {0-1 (42) Lu,S (2630)-Wei,Y (2734) Tianjin 2018}) 3... dxe4 {[%emt 0:01:09]} 4. Nxe4 {[%emt 0:00:06]} Nf6 {[%emt 0:00:02]} 5. d3 {[%emt 0:05:28]} Bf5 {[%emt 0:04:42]} 6. Bf4 {[%emt 0:06:02]} e6 $146 {[%emt 0:03:27]} ({Vorgänger:} 6... Bxe4 7. dxe4 Qa5+ 8. c3 e5 9. Bg3 Nbd7 10. Nf3 O-O-O 11. Qc2 Nh5 12. Ng5 Re8 13. Nxf7 Rg8 14. Bc4 Qc5 15. Qd3 Be7 16. Be6 Nhf6 17. Nxe5 Nxe4 18. Bxd7+ {1-0 (18) Wohde,J-Reykowski,H Lahnstein 1999}) 7. O-O-O {[%emt 0:00:37]} Be7 {[%emt 0:01:00]} 8. Ng3 {[%emt 0:00:21]} Bg6 {[%emt 0:00:49]} 9. Nf3 {[%emt 0:00:06]} Nbd7 {[%emt 0:00:41]} 10. Nh4 {[%emt 0:02:30]} Qa5 {[%emt 0:05:01]} 11. Nxg6 {[%emt 0:01:16]} hxg6 {[%emt 0:00:04]} 12. Kb1 {[%emt 0:00:04]} Nd5 {[%emt 0:01:06]} 13. Bd2 {[%emt 0:00:12]} Qb6 {[%emt 0:01:41]} 14. Ka1 {[%emt 0:12:01]} Bf6 {[%emt 0:14:48]} 15. c3 {[%emt 0:01:17]} Nc5 {[%emt 0:01:21]} 16. Ne4 {[%emt 0:02:30]} O-O-O {[%emt 0:03:07]} 17. Nxf6 {[%emt 0:07:23]} gxf6 {[%emt 0:00:20]} 18. Be3 {[%emt 0:01:05]} Rh4 {[%emt 0:07:19]} 19. Bxc5 {[%emt 0:03:26]} Qxc5 {[%emt 0:14:02]} 20. d4 {[%emt 0:00:30]} Qb6 {[%emt 0:02:17]} 21. g3 {[%emt 0:00:10]} Rh5 {[%emt 0:00:39]} 22. Bg2 {[%emt 0:00:28]} Nc7 {[%emt 0:05:52]} 23. Be4 {[%emt 0:07:56]} Ra5 {[%emt 0:02:42]} 24. Bc2 {[%emt 0:04:09]} Rdd5 {[%emt 0:06:48]} 25. h4 {[%emt 0:19:48]} Nb5 {[%emt 0:13:18]} 26. Rd3 {[%emt 0:02:00]} Nd6 {[%emt 0:03:42]} 27. b4 {[%emt 0:02:00]} Ra3 {[%emt 0:04:24]} 28. Bb3 {[%emt 0:00:33]} Rh5 {[%emt 0:01:38]} 29. Bxe6+ {[%emt 0:00:47]} fxe6 {[%emt 0:01:56]} 30. Qxe6+ {[%emt 0:00:06]} Kc7 {[%emt 0:00:02]} 31. Qe7+ {[%emt 0:00:22]} Kc8 {[%emt 0:00:03]} 32. Qxd6 {[%emt 0:01:11]} Rxa2+ {[%emt 0:00:07]} 33. Kxa2 {[%emt 0:00:15]} Qa6+ {[%emt 0:00:02]} 34. Kb3 {[%emt 0:00:33]} Qxd3 {[%emt 0:00:05]} 35. Re1 {[%emt 0:03:24]} Rh8 {[%emt 0:00:06]} 36. Qxf6 {[%emt 0:02:40]} Rd8 {[%emt 0:00:10]} 37. Qe6+ {[%emt 0:00:15]} Kb8 {[%emt 0:00:09]} 38. Qe4 {[%emt 0:00:17]} Qa6 {[%emt 0:01:32]} 39. Qxg6 {[%emt 0:01:15]} b5 {[%emt 0:00:58]} 40. Re8 {[%emt 0:00:00]} Qa4+ {[%emt 0:00:00]} 41. Kb2 {[%emt 0:00:46]} Rxe8 {[%emt 0:00:36]} 42. Qxe8+ {[%emt 0:00:04]} Kc7 {[%emt 0:00:02]} 43. Qf7+ {[%emt 0:01:15]} Kb6 {[%emt 0:00:18]} 44. Qb3 {[%emt 0:00:56]} Qa6 {[%emt 0:00:03]} 45. Qe6 {[%emt 0:00:19]} Qa4 {[%emt 0:02:58]} 46. d5 {[%emt 0:00:11]} a5 {[%emt 0:00:06]} 47. Qxc6+ {[%emt 0:00:13]} Ka7 {[%emt 0:00:02]} 48. Qc7+ {[%emt 0:00:12]} Ka6 {[%emt 0:00:05]} 49. bxa5 1-0

[Event "13th Poti Nana Aleksandria Cup"]
[Site "Poti"]
[Date "2018.07.18"]
[Round "7"]
[White "Mustafayev, Farid"]
[Black "Vakhania, Aleksandra"]
[Result "1/2-1/2"]
[ECO "B10"]
[WhiteElo "2068"]
[BlackElo "2182"]
[Annotator "NA"]
[PlyCount "122"]
[EventDate "2018.07.13"]
[EventType "swiss"]
[EventCountry "GEO"]
[SourceTitle "playchess.com"]
[Source "ChessBase"]
[SourceQuality "1"]
[TimeControl "40/5400+30:1800+30"]

1. e4 {[%emt 0:00:12]} c6 {[%emt 0:00:00]} 2. c4 {[%emt 0:00:08]} e5 {[%emt 0:00:12]} 3. Nf3 {[%emt 0:00:37]} d6 {[%emt 0:00:04]} 4. d4 {[%emt 0:00:12]} Qc7 {[%emt 0:01:05]} 5. Nc3 {[%emt 0:01:07]} Be7 {[%emt 0:00:27]} 6. Be2 {[%emt 0:00:24]} Nf6 {[%emt 0:00:14]} 7. O-O {[%emt 0:00:33]} O-O {[%emt 0:00:36]} 8. h3 {[%emt 0:01:11] A53: Old Indian Defence without Nf3} (8. Re1 Re8 9. Qc2 Bg4 10. Be3 Nbd7 11. Rac1 Bf8 12. d5 a5 13. b3 Nc5 14. Nd2 Bxe2 15. Rxe2 Ng4 16. Bxc5 dxc5 17. dxc6 bxc6 {1-0 (70) Antonenko,V (2308)-Bocharov,I (2517) Novosibirsk 2016}) 8... a6 {[%emt 0:02:34]} 9. Be3 {[%emt 0:03:11]} b5 {[%emt 0:00:27]} 10. cxb5 $146 {[%emt 0:02:49]} ({Predecessor:} 10. a3 bxc4 11. Bxc4 Nbd7 12. Rc1 Qb8 13. Qc2 Bb7 {0-1 (27) Passerotti,P (2350)-Mantovani,R (2410) Forli 1988}) 10... axb5 {[%emt 0:00:07]} 11. Qb3 {[%emt 0:00:17]} exd4 {[%emt 0:04:13]} 12. Nxd4 {[%emt 0:01:15]} Na6 {[%emt 0:01:10]} 13. a3 {[%emt 0:00:45]} Nc5 {[%emt 0:08:05]} 14. Qc2 {[%emt 0:00:08]} Qb7 {[%emt 0:00:03]} 15. f4 {[%emt 0:11:57]} Bd7 {[%emt 0:18:07]} 16. Bf3 {[%emt 0:00:24]} Na4 {[%emt 0:12:49]} 17. e5 {[%emt 0:07:57]} dxe5 {[%emt 0:00:59]} 18. fxe5 {[%emt 0:00:12]} Nd5 {[%emt 0:00:03]} 19. Nxd5 {[%emt 0:00:29]} cxd5 {[%emt 0:00:06]} 20. Qb3 {[%emt 0:00:15]} Be6 {[%emt 0:00:14]} (20... Nb6 $14) 21. Rfd1 {[%emt 0:06:00]} Bc5 {[%emt 0:05:56]} 22. Nxe6 {[%emt 0:02:35]} fxe6 {[%emt 0:01:24]} 23. Bxc5 {[%emt 0:01:04]} Nxc5 {[%emt 0:00:07]} 24. Qe3 {[%emt 0:00:02]} Rac8 {[%emt 0:03:57]} 25. Rac1 {[%emt 0:04:18]} Na4 {[%emt 0:03:42]} 26. Bg4 {[%emt 0:00:52]} Qe7 {[%emt 0:10:04]} 27. Rxc8 {[%emt 0:08:55]} Rxc8 {[%emt 0:00:27]} 28. Rxd5 {[%emt 0:00:32]} h5 {[%emt 0:01:23]} 29. Bxe6+ {[%emt 0:02:47]} Qxe6 {[%emt 0:00:08]} 30. Rxb5 {[%emt 0:00:06]} Qc4 {[%emt 0:04:35]} 31. Rb7 {[%emt 0:05:16]} Qc5 {[%emt 0:05:21]} 32. Qxc5 {[%emt 0:00:18]} Nxc5 {[%emt 0:00:11]} 33. Rb5 {[%emt 0:01:30]} Kf7 {[%emt 0:01:23]} 34. e6+ {[%emt 0:02:30]} Kxe6 {[%emt 0:10:58]} 35. b4 {[%emt 0:00:13]} Ne4 {[%emt 0:01:30]} 36. Rxh5 {[%emt 0:00:05]} Ra8 {[%emt 0:00:53]} 37. Ra5 {[%emt 0:02:46]} Rc8 {[%emt 0:00:37]} 38. Kh2 {[%emt 0:02:35]} Rc2 {[%emt 0:00:19]} 39. b5 {[%emt 0:00:28]} Rb2 {[%emt 0:01:57]} 40. a4 {[%emt 0:00:00]} Nc5 {[%emt 0:00:00]} 41. b6 {[%emt 0:02:11]} Nd7 {[%emt 0:04:43]} 42. Ra7 {[%emt 0:01:57]} Rxb6 {[%emt 0:00:31]} 43. a5 {[%emt 0:00:04]} Rb2 {[%emt 0:01:08]} 44. a6 {[%emt 0:01:16]} Ra2 {[%emt 0:02:57]} 45. h4 {[%emt 0:00:46]} g6 {[%emt 0:00:51]} 46. Ra8 {[%emt 0:00:13]} Nb6 {[%emt 0:01:50]} 47. Rg8 {[%emt 0:00:36]} Kf7 {[%emt 0:00:14]} 48. Rd8 {[%emt 0:00:06]} Nc4 {[%emt 0:02:23]} 49. Rd7+ {[%emt 0:01:18]} Ke6 {[%emt 0:00:31]} 50. Rc7 {[%emt 0:02:28]} Ne3 {[%emt 0:02:29]} 51. Rc6+ {[%emt 0:00:06]} Kf5 {[%emt 0:00:36]} 52. Kg3 {[%emt 0:02:11]} Nxg2 {[%emt 0:00:42]} 53. Rc5+ {[%emt 0:05:13]} Kf6 {[%emt 0:00:17]} 54. Rc6+ $15 {[%emt 0:01:38]} Kg7 {[%emt 0:00:10]} 55. Re6 {[%emt 0:01:32]} Kh6 {[%emt 0:06:06]} 56. Re7 {[%emt 0:01:10]} Nxh4 {[%emt 0:00:45]} 57. Kxh4 {[%emt 0:00:05]} Ra4+ {[%emt 0:00:05]} 58. Kg3 {[%emt 0:00:05]} Rxa6 {[%emt 0:00:03]} 59. Re3 {[%emt 0:00:07]} Kg5 {[%emt 0:01:22]} 60. Rb3 {[%emt 0:00:08]} Rf6 {[%emt 0:00:18]} 61. Rb5+ {[%emt 0:00:12]} Rf5 {[%emt 0:00:19]} 1/2-1/2

[Event "13th Poti Nana Aleksandria Cup"]
[Site "Poti"]
[Date "2018.07.18"]
[Round "7"]
[White "Samadov, Read"]
[Black "Nikulina, Alena"]
[Result "1-0"]
[ECO "E10"]
[WhiteElo "2037"]
[BlackElo "1959"]
[Annotator "NA"]
[PlyCount "67"]
[EventDate "2018.07.13"]
[EventType "swiss"]
[EventCountry "GEO"]
[SourceTitle "playchess.com"]
[Source "ChessBase"]
[SourceQuality "1"]
[TimeControl "40/5400+30:1800+30"]

1. d4 {[%emt 0:00:00]} Nf6 {[%emt 0:06:53]} 2. c4 {[%emt 0:00:00]} e6 {[%emt 0:00:12]} 3. Nf3 {[%emt 0:00:00]} c5 {[%emt 0:00:55]} 4. e3 {[%emt 0:00:50]} d5 {[%emt 0:02:34]} 5. Nc3 {[%emt 0:01:55]} b6 {[%emt 0:03:09]} 6. cxd5 {[%emt 0:03:05]} Nxd5 {[%emt 0:03:25]} 7. Bd3 {[%emt 0:03:45]} Bb7 {[%emt 0:01:02]} 8. O-O {[%emt 0:01:21]} Be7 {[%emt 0:00:27]} 9. e4 {[%emt 0:12:32]} Nxc3 {[%emt 0:10:22]} 10. bxc3 {[%emt 0:00:09]} O-O {[%emt 0:00:11]} 11. Bb2 {[%emt 0:02:33]} Nd7 {[%emt 0:07:11]} 12. Qe2 {[%emt 0:01:43]} Qc7 {[%emt 0:07:15]} 13. Rad1 {[%emt 0:02:00]} Rfd8 {[%emt 0:09:10]} 14. Nd2 {[%emt 0:06:22]} (14. d5 $5) 14... e5 {[%emt 0:10:11]} 15. d5 {[%emt 0:04:39]} Nf8 {[%emt 0:02:08]} 16. c4 {[%emt 0:06:16]} Ng6 {[%emt 0:01:26]} 17. g3 $16 {[%emt 0:05:43]} Bd6 {[%emt 0:06:37]} 18. h4 {[%emt 0:05:58]} Bc8 {[%emt 0:02:00]} 19. h5 {[%emt 0:01:37]} Ne7 {[%emt 0:00:18]} 20. Kg2 {[%emt 0:04:34]} f5 {[%emt 0:04:33]} 21. exf5 {[%emt 0:06:40]} Bxf5 {[%emt 0:02:11]} 22. Ne4 {[%emt 0:02:03]} Qd7 {[%emt 0:08:33]} 23. Nxd6 {[%emt 0:01:51]} Bh3+ {[%emt 0:05:16]} 24. Kg1 {[%emt 0:00:40]} Qxd6 {[%emt 0:02:28]} 25. Rfe1 {[%emt 0:00:44]} Nf5 {[%emt 0:01:31]} 26. Kh2 {[%emt 0:01:43]} Qd7 {[%emt 0:00:50]} 27. Qe4 {[%emt 0:02:05]} g6 {[%emt 0:00:58]} 28. g4 {[%emt 0:01:23]} Nh6 {[%emt 0:00:58]} 29. Kxh3 {[%emt 0:00:38]} gxh5 {[%emt 0:00:07]} 30. Rg1 {[%emt 0:01:05]} hxg4+ {[%emt 0:00:03]} 31. Kg2 {[%emt 0:00:12]} Re8 {[%emt 0:00:31]} 32. Rh1 {[%emt 0:00:39]} Qg7 {[%emt 0:00:02]} 33. Bc1 {[%emt 0:00:33]} g3 {[%emt 0:01:21]} 34. Bxh6 {[%emt 0:00:18]} 1-0